bitfinex/quotes_SOLUSD_20240708
["timestamp","ask_amount","ask_price","bid_price","bid_amount"]
[1720475400957,9.76,140.52,140.48,21.9864]
[1720475402142,10.85733162,140.55,140.48,21.9864]
[1720475402441,9.76,140.52,140.48,21.9864]
[1720475403134,9.76,140.51,140.48,21.9864]
[1720475403333,9.76,140.52,140.48,21.9864]
[1720475408760,10.85733162,140.55,140.48,21.9864]
[1720475409057,9.76,140.52,140.48,21.9864]
[1720475412662,10.85733162,140.55,140.48,21.9864]
[1720475413162,9.76,140.52,140.48,21.9864]
[1720475413542,10.85733162,140.55,140.48,21.9864]
[1720475413872,9.76,140.52,140.48,21.9864]
[1720475414165,10.85733162,140.55,140.48,21.9864]
[1720475414468,9.76,140.52,140.48,21.9864]
[1720475416565,9.76,140.51,140.48,21.9864]
[1720475416958,9.76,140.52,140.48,21.9864]
[1720475418656,10.85733162,140.55,140.48,21.9864]
[1720475418850,9.76,140.52,140.48,21.9864]
[1720475419561,10.85733162,140.55,140.48,21.9864]
[1720475419749,9.76,140.52,140.48,21.9864]
[1720475424456,3.74271074,140.54,140.48,21.9864]
[1720475424757,9.76,140.52,140.48,21.9864]
[1720475426561,9.76,140.53,140.48,21.9864]
[1720475431175,10.85737456,140.55,140.48,21.9864]
[1720475431361,9.76,140.53,140.48,21.9864]
[1720475432687,9.76,140.53,140.48,31.7464]
[1720475433259,9.76,140.53,140.48,21.9864]
[1720475433477,9.76,140.53,140.48,31.7464]
[1720475433772,9.76,140.53,140.48,21.9864]
[1720475436054,10.85737456,140.55,140.48,21.9864]
[1720475436353,9.76,140.53,140.48,21.9864]
[1720475436874,9.76,140.54,140.48,31.7464]
[1720475437071,9.76,140.53,140.48,21.9864]
[1720475437382,9.76,140.54,140.48,31.7464]
[1720475438183,13.50227456,140.54,140.48,31.7464]
[1720475438601,9.76,140.54,140.48,31.7464]
[1720475438776,9.76,140.53,140.48,31.7464]
[1720475439178,3.74227456,140.55,140.48,31.7464]
[1720475439498,9.76,140.53,140.48,31.7464]
[1720475440896,9.76,140.53,140.48,21.9864]
[1720475441398,9.76,140.52,140.48,21.9864]
[1720475443073,9.76,140.52,140.46,9.76]
[1720475443277,16.3834,140.51,140.4,100.0]
[1720475443594,9.76,140.47,140.42,9.76]
[1720475443792,7.1184,140.48,140.39,21.1697]
[1720475443977,9.76,140.46,140.41,9.76]
[1720475445304,9.76,140.46,140.4,0.17]
[1720475445483,9.76,140.46,140.4,20.17]
[1720475445684,9.76,140.46,140.41,9.76]
[1720475447600,9.76,140.47,140.42,9.76]
[1720475449887,9.76,140.46,140.42,9.76]
[1720475450402,6.3987,140.5,140.4,20.0]
[1720475450403,9.76,140.45,140.4,20.0]
[1720475450711,9.76,140.45,140.4,9.76]
[1720475451078,9.76,140.45,140.39,15.1482]
[1720475451275,9.76,140.45,140.4,9.76]
[1720475452411,9.76,140.44,140.4,9.76]
[1720475453102,9.76,140.44,140.39,15.1482]
[1720475453412,9.76,140.44,140.36,6.3897]
[1720475453599,9.76,140.43,140.37,20.0]
[1720475453908,7.12,140.45,140.38,9.76]
[1720475454278,7.12,140.45,140.37,20.0]
[1720475454778,9.76,140.42,140.37,29.76]
[1720475455105,9.76,140.43,140.38,9.76]
[1720475457195,9.76,140.43,140.37,20.0]
[1720475457399,9.76,140.43,140.38,9.76]
[1720475458178,0.17,140.45,140.37,20.0]
[1720475458500,9.76,140.43,140.37,20.0]
[1720475458708,9.76,140.43,140.38,9.76]
[1720475459408,9.76,140.43,140.37,20.0]
[1720475459707,9.76,140.43,140.38,9.76]
[1720475459893,9.76,140.43,140.37,20.0]
[1720475460094,9.76,140.43,140.38,9.76]
[1720475460901,0.34,140.45,140.38,9.76]
[1720475461107,9.76,140.43,140.38,9.76]
[1720475461306,9.76,140.43,140.37,20.0]
[1720475461502,9.76,140.43,140.38,9.76]
[1720475462587,9.76,140.43,140.37,20.0]
[1720475462788,9.76,140.43,140.38,9.76]
[1720475462989,9.76,140.43,140.37,20.0]
[1720475463188,9.76,140.43,140.38,9.76]
[1720475463986,9.76,140.43,140.37,20.0]
[1720475464319,9.76,140.43,140.38,9.76]
[1720475464807,9.76,140.43,140.37,20.0]
[1720475465009,9.76,140.43,140.38,9.76]
[1720475465997,9.76,140.43,140.36,20.0]
[1720475466198,9.76,140.43,140.38,9.76]
[1720475467613,9.76,140.43,140.36,20.0]
[1720475467912,9.76,140.43,140.38,9.76]
[1720475469221,15.0209,140.42,140.36,20.0]
[1720475469394,15.0209,140.42,140.38,9.76]
[1720475494400,15.0209,140.42,140.37,9.76]
[1720475496335,15.0209,140.42,140.38,9.76]
[1720475499239,7.4601,140.45,140.39,9.76]
[1720475499423,22.60820102,140.44,140.39,9.76]
[1720475499622,7.4601,140.45,140.37,15.1048]
[1720475499935,22.60806548,140.44,140.39,9.76]
[1720475500138,9.76,140.44,140.39,9.76]
[1720475504326,11.17938619,140.45,140.38,9.76]
[1720475504533,22.60811604,140.44,140.38,9.76]
[1720475504734,9.76,140.44,140.38,9.76]
[1720475505241,11.17938619,140.45,140.38,9.76]
[1720475505425,39.06531899,140.44,140.34,15.8288]
[1720475505749,26.2172,140.44,140.38,9.76]
[1720475506239,16.4572,140.44,140.38,9.76]
[1720475506445,26.2172,140.44,140.38,9.76]
[1720475508455,16.4572,140.44,140.38,9.76]
[1720475508638,33.3376,140.44,140.38,9.76]
[1720475508941,26.2172,140.44,140.38,9.76]
[1720475510047,26.2172,140.44,140.35,20.17]
[1720475510250,23.5777,140.44,140.38,9.76]
[1720475510548,33.3377,140.44,140.38,9.76]
[1720475512152,23.5777,140.44,140.38,9.76]
[1720475512358,33.3377,140.44,140.37,9.76]
[1720475512650,9.76,140.43,140.37,9.76]
[1720475513446,11.17948619,140.45,140.38,9.76]
[1720475513653,17.2202,140.45,140.38,9.76]
[1720475513832,0.34,140.45,140.38,9.76]
[1720475514144,28.80458389,140.44,140.38,9.76]
[1720475514359,15.9568,140.44,140.39,9.76]
[1720475520951,17.2199,140.45,140.39,9.76]
[1720475521159,12.84755802,140.44,140.4,9.76]
[1720475521461,18.93982191,140.47,140.42,9.76]
[1720475521641,12.84599997,140.46,140.42,9.76]
[1720475521961,16.0965,140.48,140.43,9.76]
[1720475522439,16.0965,140.48,140.39,0.17]
[1720475522640,16.0965,140.48,140.43,9.76]
[1720475522839,6.3365,140.48,140.43,9.76]
[1720475523058,16.0965,140.48,140.43,9.76]
[1720475523267,6.3365,140.48,140.43,9.76]
[1720475523435,16.0965,140.48,140.43,9.76]
[1720475523631,6.3365,140.48,140.44,9.76]
[1720475523866,6.3365,140.48,140.43,9.76]
[1720475524044,6.3365,140.48,140.44,9.76]
[1720475524465,6.3365,140.48,140.43,9.76]
[1720475524650,16.0965,140.48,140.43,9.76]
[1720475525047,6.3365,140.48,140.43,9.76]
[1720475525265,6.3365,140.48,140.44,9.76]
[1720475526965,22.4682,140.51,140.44,9.76]
[1720475527140,15.3511,140.51,140.45,9.76]
[1720475527347,9.76,140.5,140.45,9.76]
[1720475529670,3.73687397,140.54,140.47,9.76]
[1720475529846,7.4561,140.53,140.46,9.76]
[1720475530160,7.2861,140.53,140.47,9.76]
[1720475530400,9.76,140.52,140.47,9.76]
[1720475530861,0.17,140.53,140.48,9.76]
[1720475531056,17.2158,140.54,140.49,9.76]
[1720475531642,22.8788,140.55,140.49,9.76]
[1720475531867,9.76,140.54,140.49,9.76]
[1720475532363,16.8754,140.54,140.49,9.76]
[1720475532864,9.76,140.54,140.49,9.76]
[1720475534745,22.8788,140.55,140.49,9.76]
[1720475534946,9.76,140.54,140.49,9.76]
[1720475535345,22.8788,140.55,140.49,9.76]
[1720475535552,9.76,140.53,140.48,9.76]
[1720475536246,7.1154,140.54,140.48,9.76]
[1720475536455,9.76,140.53,140.48,9.76]
[1720475536647,16.8754,140.54,140.49,9.76]
[1720475537172,7.1154,140.54,140.49,9.76]
[1720475537374,16.8754,140.54,140.49,9.76]
[1720475537769,9.76,140.53,140.48,9.76]
[1720475538246,7.1154,140.54,140.48,9.76]
[1720475538664,22.8787,140.55,140.49,9.76]
[1720475538861,9.76,140.54,140.49,9.76]
[1720475539294,15.7637,140.55,140.49,9.76]
[1720475539747,9.76,140.54,140.49,9.76]
[1720475539948,7.1144,140.56,140.49,9.76]
[1720475540151,9.76,140.54,140.49,9.76]
[1720475540363,7.1144,140.56,140.5,15.5726]
[1720475540567,25.46173854,140.58,140.5,15.5726]
[1720475540568,9.76,140.54,140.5,15.5726]
[1720475542575,7.1147,140.56,140.5,15.5726]
[1720475542887,7.1139,140.57,140.5,15.5726]
[1720475543076,7.1145,140.56,140.5,25.3326]
[1720475543281,9.76,140.55,140.5,25.3326]
[1720475544164,9.76,140.54,140.5,15.5726]
[1720475544473,7.1149,140.55,140.5,15.5726]
[1720475544661,9.76,140.54,140.5,15.5726]
[1720475544984,9.76,140.55,140.5,25.3326]
[1720475545484,7.1146,140.56,140.5,25.3326]
[1720475545775,9.76,140.55,140.5,25.3326]
[1720475545971,16.8749,140.55,140.5,25.3326]
[1720475546685,9.76,140.55,140.5,25.3326]
[1720475547063,9.76,140.54,140.5,25.3326]
[1720475547268,9.76,140.54,140.5,15.5726]
[1720475547654,16.8749,140.55,140.5,25.3326]
[1720475547986,9.76,140.55,140.5,25.3326]
[1720475549279,7.1149,140.55,140.5,25.3326]
[1720475549457,7.1145,140.56,140.5,25.3326]
[1720475549659,16.8749,140.55,140.5,25.3326]
[1720475549969,7.1149,140.55,140.5,25.3326]
[1720475550168,16.8749,140.55,140.5,25.3326]
[1720475550471,9.76,140.55,140.5,25.3326]
[1720475550663,9.76,140.54,140.5,15.5726]
[1720475550864,9.76,140.55,140.5,25.3326]
[1720475551487,9.76,140.54,140.5,15.5726]
[1720475551695,7.115,140.55,140.5,15.5726]
[1720475552170,9.76,140.54,140.5,15.5726]
[1720475552485,7.1146,140.56,140.5,15.5726]
[1720475552696,7.1149,140.55,140.5,25.3326]
[1720475552866,16.8749,140.55,140.5,25.3326]
[1720475553570,7.1149,140.55,140.5,25.3326]
[1720475553769,16.8749,140.55,140.5,25.3326]
[1720475555993,9.76,140.55,140.5,25.3326]
[1720475556387,16.875,140.55,140.5,25.3326]
[1720475559368,16.875,140.55,140.5,15.5726]
[1720475559570,9.76,140.54,140.5,15.5726]
[1720475559797,9.76,140.55,140.5,25.3326]
[1720475560577,16.8749,140.55,140.5,25.3326]
[1720475561292,16.3966,140.58,140.51,9.76]
[1720475561581,7.1154,140.54,140.5,15.5726]
[1720475561780,16.8751,140.55,140.5,25.3326]
[1720475562488,16.8751,140.55,140.5,15.5726]
[1720475562707,16.8751,140.55,140.5,25.3326]
[1720475563068,7.1145,140.56,140.5,25.3326]
[1720475563286,16.8745,140.56,140.5,25.3326]
[1720475563492,16.8749,140.55,140.5,25.3326]
[1720475565595,7.1149,140.55,140.5,25.3326]
[1720475565898,16.8749,140.55,140.5,25.3326]
[1720475567703,7.1149,140.55,140.5,25.3326]
[1720475567994,16.8749,140.55,140.5,25.3326]
[1720475570696,7.1149,140.55,140.5,25.3326]
[1720475570901,16.8749,140.55,140.5,25.3326]
[1720475571198,16.8749,140.55,140.5,15.5726]
[1720475573693,7.1149,140.55,140.5,15.5726]
[1720475574104,16.8749,140.55,140.5,15.5726]
[1720475575094,12.83902882,140.54,140.5,15.5726]
[1720475575399,16.8749,140.55,140.5,15.5726]
[1720475575779,12.83902882,140.54,140.5,15.5726]
[1720475575997,16.8749,140.55,140.5,15.5726]
[1720475576307,12.83902882,140.54,140.5,15.5726]
[1720475576506,16.8749,140.55,140.5,15.5726]
[1720475576687,12.83895304,140.54,140.5,25.3326]
[1720475576887,16.8749,140.55,140.5,25.3326]
[1720475577079,12.83895304,140.54,140.5,25.3326]
[1720475577281,7.1149,140.55,140.5,25.3326]
[1720475577482,12.83895009,140.54,140.5,25.3326]
[1720475577692,7.1149,140.55,140.5,25.3326]
[1720475577894,12.83902882,140.54,140.5,25.3326]
[1720475578093,7.1149,140.55,140.5,25.3326]
[1720475578293,12.83903177,140.54,140.5,25.3326]
[1720475578496,7.1149,140.55,140.5,25.3326]
[1720475578698,12.83910755,140.54,140.5,25.3326]
[1720475579209,7.1149,140.55,140.5,25.3326]
[1720475579390,12.83902882,140.54,140.5,25.3326]
[1720475579595,16.8749,140.55,140.5,25.3326]
[1720475579780,12.83895304,140.54,140.5,25.3326]
[1720475580097,16.8749,140.55,140.5,25.3326]
[1720475580282,12.83895304,140.54,140.5,25.3326]
[1720475580482,16.8749,140.55,140.5,25.3326]
[1720475580700,12.83902882,140.54,140.5,25.3326]
[1720475580884,16.8749,140.55,140.5,25.3326]
[1720475581083,12.83903177,140.54,140.5,25.3326]
[1720475581284,16.8749,140.55,140.5,25.3326]
[1720475581490,12.83895009,140.54,140.5,25.3326]
[1720475581707,16.8749,140.55,140.5,25.3326]
[1720475581907,12.83895304,140.54,140.5,25.3326]
[1720475582207,16.8749,140.55,140.5,25.3326]
[1720475582502,12.83903177,140.54,140.5,25.3326]
[1720475582812,7.1149,140.55,140.5,25.3326]
[1720475583104,12.83910494,140.54,140.5,25.3326]
[1720475583308,7.1149,140.55,140.5,25.3326]
[1720475583516,12.8391105,140.54,140.5,25.3326]
[1720475583704,7.1149,140.55,140.5,25.3326]
[1720475583907,12.83902882,140.54,140.5,25.3326]
[1720475584089,7.1149,140.55,140.5,25.3326]
[1720475584283,16.8749,140.55,140.5,25.3326]
[1720475585201,20.5861491,140.55,140.5,25.3326]
[1720475585988,7.1149,140.55,140.5,25.3326]
[1720475586202,10.8261491,140.55,140.5,25.3326]
[1720475586412,20.5861491,140.55,140.5,25.3326]
[1720475587922,10.8261491,140.55,140.5,25.3326]
[1720475589787,10.8261491,140.55,140.5,15.5726]
[1720475589983,20.5861491,140.55,140.5,15.5726]
[1720475591120,20.5861491,140.55,140.5,25.3326]
[1720475591303,20.5861491,140.55,140.5,15.5726]
[1720475591492,20.5861491,140.55,140.5,25.3326]
[1720475594914,10.8261491,140.55,140.5,25.3326]
[1720475595100,20.5861491,140.55,140.5,25.3326]
[1720475596322,20.5861491,140.55,140.5,15.5726]
[1720475596808,3.7112491,140.54,140.5,15.5726]
[1720475597423,20.5861491,140.55,140.5,15.5726]
[1720475598115,9.76,140.54,140.5,15.5726]
[1720475598306,10.8266491,140.54,140.5,15.5726]
[1720475598509,3.7112491,140.54,140.5,15.5726]
[1720475599529,20.5863491,140.55,140.5,15.5726]
[1720475599734,10.8263491,140.55,140.5,15.5726]
[1720475600028,13.4712491,140.55,140.49,9.76]
[1720475600321,3.7112491,140.54,140.47,0.17]
[1720475600508,3.7112491,140.54,140.49,9.76]
[1720475600900,3.7112491,140.54,140.49,26.3242]
[1720475601323,3.7112491,140.55,140.49,16.5642]
[1720475601631,13.4712491,140.55,140.49,26.3242]
[1720475602298,20.5863491,140.55,140.49,26.3242]
[1720475603304,20.5863491,140.55,140.49,16.5642]
[1720475603628,20.5863491,140.55,140.49,26.3242]
[1720475604830,10.8263491,140.55,140.49,26.3242]
[1720475605028,20.5863491,140.55,140.49,26.3242]
[1720475606531,10.8263491,140.55,140.49,26.3242]
[1720475606723,20.5863491,140.55,140.49,26.3242]
[1720475607438,20.6190292,140.55,140.49,26.3242]
[1720475607610,10.8590292,140.55,140.49,26.3242]
[1720475607811,20.6190292,140.55,140.49,26.3242]
[1720475608931,24.2884884,140.54,140.49,26.3242]
[1720475609530,24.2884884,140.54,140.46,6.5795]
[1720475609531,3.7439292,140.54,140.46,21.8136]
[1720475609722,16.1627,140.48,140.37,6.2679]
[1720475609913,16.1627,140.48,140.38,30.0]
[1720475610115,9.76,140.46,140.38,30.0]
[1720475610315,16.1627,140.48,140.37,6.2679]
[1720475610316,9.76,140.45,140.37,6.2679]
[1720475610532,9.76,140.45,140.4,9.76]
[1720475611808,9.76,140.46,140.4,9.76]
[1720475612125,9.76,140.46,140.41,9.76]
[1720475612318,22.7993,140.48,140.37,6.2679]
[1720475612646,22.7993,140.48,140.4,9.76]
[1720475612647,9.76,140.45,140.4,9.76]
[1720475612948,0.17,140.47,140.4,9.76]
[1720475613235,9.76,140.45,140.4,9.76]
[1720475622541,9.76,140.45,140.37,6.2679]
[1720475622749,9.76,140.45,140.4,9.76]
[1720475624127,9.76,140.44,140.39,9.76]
[1720475624657,9.76,140.44,140.37,6.2679]
[1720475624958,9.76,140.44,140.39,9.76]
[1720475625461,9.76,140.44,140.37,6.2679]
[1720475625648,9.76,140.43,140.38,9.76]
[1720475627537,9.76,140.43,140.39,9.76]
[1720475629433,16.8805,140.44,140.39,9.76]
[1720475629747,7.1205,140.44,140.39,9.76]
[1720475629935,9.76,140.43,140.38,9.76]
[1720475630655,9.76,140.43,140.36,15.2341]
[1720475630853,9.76,140.43,140.38,9.76]
[1720475631049,7.1205,140.44,140.38,9.76]
[1720475631247,10.17590521,140.46,140.4,9.76]
[1720475631561,27.05560521,140.46,140.41,9.76]
[1720475631755,17.29560521,140.46,140.41,9.76]
[1720475631949,27.05570521,140.46,140.41,9.76]
[1720475632136,19.93590521,140.46,140.41,9.76]
[1720475633543,7.12,140.45,140.39,6.2697]
[1720475633753,7.12,140.45,140.41,9.76]
[1720475634638,7.12,140.45,140.36,21.5166]
[1720475634850,7.12,140.45,140.4,9.76]
[1720475635484,7.1205,140.44,140.4,9.76]
[1720475635645,7.1205,140.44,140.41,9.76]
[1720475635841,7.1205,140.44,140.36,21.5166]
[1720475636033,7.1205,140.44,140.4,9.76]
[1720475636236,7.1213,140.43,140.4,9.76]
[1720475636950,7.1206,140.44,140.4,9.76]
[1720475637163,7.121,140.43,140.4,9.76]
[1720475638166,10.17590521,140.46,140.4,9.76]
[1720475638342,7.1204,140.45,140.41,9.76]
[1720475640356,7.1204,140.45,140.37,15.6164]
[1720475640559,7.1196,140.46,140.42,9.76]
[1720475640869,7.12,140.45,140.42,9.76]
[1720475641948,7.12,140.45,140.39,21.8079]
[1720475642151,7.12,140.45,140.41,9.76]
[1720475643259,7.12,140.45,140.42,9.76]
[1720475645571,7.12,140.45,140.41,9.76]
[1720475647079,7.12,140.45,140.42,9.76]
[1720475648845,7.12,140.45,140.39,21.8079]
[1720475649045,7.12,140.45,140.42,9.76]
[1720475649256,7.12,140.45,140.39,21.8079]
[1720475649471,7.12,140.45,140.42,9.76]
[1720475649776,7.12,140.45,140.39,21.8079]
[1720475650074,7.12,140.45,140.41,9.76]
[1720475655880,7.12,140.45,140.39,21.8079]
[1720475656064,7.12,140.45,140.41,9.76]
[1720475659066,7.12,140.45,140.39,21.8079]
[1720475659381,7.12,140.45,140.41,9.76]
[1720475659584,9.93,140.47,140.39,15.537]
[1720475659585,7.1204,140.44,140.39,15.537]
[1720475659880,7.1204,140.44,140.4,9.76]
[1720475660379,7.121,140.43,140.4,9.76]
[1720475660766,7.1206,140.44,140.4,9.76]
[1720475661266,7.1196,140.46,140.41,9.76]
[1720475661466,7.1196,140.46,140.42,9.76]
[1720475661664,16.8796,140.46,140.41,9.76]
[1720475662481,10.83341571,140.45,140.4,9.76]
[1720475662655,10.83341571,140.45,140.35,23.2589]
[1720475662656,10.83381571,140.44,140.35,23.2589]
[1720475662852,10.83381571,140.44,140.4,9.76]
[1720475663074,10.83381571,140.44,140.35,23.2589]
[1720475663280,10.83381571,140.44,140.4,9.76]
[1720475664290,7.1205,140.44,140.4,9.76]
[1720475664665,7.1205,140.44,140.36,20.0]
[1720475664859,7.1205,140.44,140.4,9.76]
[1720475665255,9.76,140.44,140.36,20.0]
[1720475665578,16.8807,140.44,140.39,9.76]
[1720475669769,34.35453596,140.45,140.39,9.76]
[1720475670094,44.11453596,140.45,140.39,9.76]
[1720475671170,40.37238752,140.45,140.39,9.76]
[1720475672600,7.1212,140.43,140.36,20.0]
[1720475672900,9.76,140.43,140.36,20.0]
[1720475673391,9.76,140.43,140.38,9.76]
[1720475673611,9.76,140.43,140.35,16.5524]
[1720475673894,16.8811,140.43,140.38,9.76]
[1720475674105,9.76,140.43,140.38,9.76]
[1720475675194,7.2907,140.44,140.33,5.76590107]
[1720475675502,29.76,140.43,140.38,9.76]
[1720475676395,13.6348,140.42,140.32,6.4596]
[1720475676594,23.3948,140.42,140.37,9.76]
[1720475679471,13.6348,140.42,140.37,9.76]
[1720475679698,23.3948,140.42,140.37,9.76]
[1720475680317,23.3948,140.42,140.32,51.1549747]
[1720475680476,7.122,140.41,140.37,9.76]
[1720475681410,13.6349,140.42,140.37,9.76]
[1720475681581,23.3949,140.42,140.37,9.76]
[1720475682573,7.1238,140.38,140.25,100.0]
[1720475682788,16.8838,140.38,140.33,9.76]
[1720475683090,9.76,140.38,140.33,9.76]
[1720475683291,22.6866,140.39,140.33,9.76]
[1720475683503,9.76,140.38,140.33,9.76]
[1720475684490,9.76,140.38,140.27,16.081]
[1720475684683,9.76,140.38,140.33,9.76]
[1720475685284,16.8835,140.38,140.33,9.76]
[1720475685480,9.76,140.37,140.32,9.76]
[1720475686314,7.1235,140.38,140.32,9.76]
[1720475686612,9.76,140.37,140.32,9.76]
[1720475686994,7.1235,140.38,140.32,9.76]
[1720475687194,9.76,140.37,140.32,9.76]
[1720475688023,9.76,140.37,140.28,20.0]
[1720475688024,16.8845,140.36,140.28,20.0]
[1720475688184,16.8845,140.36,140.31,9.76]
[1720475688185,7.1245,140.36,140.31,9.76]
[1720475688384,16.8845,140.36,140.31,9.76]
[1720475688782,39.7757,140.35,140.3,9.76]
[1720475689082,39.7759,140.35,140.3,9.76]
[1720475689283,7.4656,140.34,140.22,29.28684893]
[1720475689495,7.4656,140.34,140.29,9.76]
[1720475689701,17.2256,140.34,140.29,9.76]
[1720475690213,7.1264,140.33,140.22,28.57628925]
[1720475690412,9.76,140.32,140.22,22.7811]
[1720475690711,9.76,140.31,140.26,9.76]
[1720475691502,7.1266,140.32,140.22,22.7811]
[1720475691711,9.76,140.31,140.26,9.76]
[1720475692212,9.76,140.31,140.23,20.0]
[1720475692386,9.76,140.31,140.26,9.76]
[1720475692591,7.1263,140.33,140.26,9.76]
[1720475692790,9.76,140.31,140.26,9.76]
[1720475693590,9.76,140.31,140.23,20.0]
[1720475693790,0.17,140.3,140.23,20.0]
[1720475694101,21.9791,140.29,140.23,20.0]
[1720475694318,21.9791,140.29,140.26,9.76]
[1720475695296,21.9791,140.29,140.25,9.76]
[1720475696194,21.9791,140.29,140.21,20.0]
[1720475696402,21.9791,140.29,140.25,9.76]
[1720475698686,0.17,140.28,140.25,9.76]
[1720475699118,0.17,140.28,140.24,9.76]
[1720475700720,0.17,140.28,140.19,0.04226711]
[1720475701018,0.17,140.28,140.24,9.76]
[1720475707326,0.34,140.28,140.19,0.04226711]
[1720475707528,7.4686,140.28,140.24,9.76]
[1720475707712,0.34,140.28,140.24,9.76]
[1720475711016,0.34,140.28,140.23,9.76]
[1720475711017,10.1,140.28,140.23,9.76]
[1720475711631,21.9791,140.29,140.25,9.76]
[1720475712721,7.46417283,140.31,140.22,15.9123]
[1720475712921,21.4919,140.33,140.29,9.76]
[1720475713127,21.4919,140.33,140.3,9.76]
[1720475713333,6.2983,140.36,140.31,9.76]
[1720475713521,41.72065898,140.37,140.3,9.76]
[1720475713727,24.83645898,140.37,140.33,9.76]
[1720475714428,15.69019588,140.39,140.33,9.76]
[1720475714429,16.02680868,140.39,140.33,9.76]
[1720475714612,8.56709588,140.39,140.35,9.76]
[1720475715220,17.7988,140.46,140.37,9.76]
[1720475715221,7.1206,140.44,140.37,9.76]
[1720475715408,9.76,140.43,140.38,9.76]
[1720475715619,16.881,140.43,140.38,9.76]
[1720475715910,8.09765144,140.45,140.39,9.76]
[1720475715911,9.76,140.44,140.39,9.76]
[1720475717125,15.21805144,140.45,140.39,9.76]
[1720475717336,9.76,140.44,140.39,9.76]
[1720475717926,15.21805144,140.45,140.39,9.76]
[1720475718137,29.76,140.44,140.39,9.76]
[1720475718914,36.8806,140.44,140.39,9.76]
[1720475719624,27.1206,140.44,140.39,9.76]
[1720475719808,36.8806,140.44,140.39,9.76]
[1720475720440,27.1206,140.44,140.39,9.76]
[1720475720805,7.1206,140.44,140.39,9.76]
[1720475721310,16.8806,140.44,140.39,9.76]
[1720475721752,7.62672644,140.46,140.4,9.76]
[1720475722033,8.09765144,140.49,140.39,16.3137]
[1720475722034,9.76,140.47,140.42,9.76]
[1720475723017,16.8791,140.47,140.42,9.76]
[1720475724633,7.2888,140.48,140.42,9.76]
[1720475724944,17.0488,140.48,140.43,9.76]
[1720475725148,17.0488,140.48,140.39,16.3137]
[1720475725356,17.0488,140.48,140.4,20.0]
[1720475725508,17.0488,140.48,140.43,9.76]
[1720475727527,7.2888,140.48,140.43,9.76]
[1720475727727,17.048,140.49,140.44,9.76]
[1720475727928,7.288,140.49,140.44,9.76]
[1720475728131,17.048,140.49,140.44,9.76]
[1720475728829,7.288,140.49,140.44,9.76]
[1720475729034,17.048,140.49,140.44,9.76]
[1720475730046,7.1184,140.48,140.44,9.76]
[1720475730352,7.1198,140.46,140.4,20.0]
[1720475730583,7.1191,140.47,140.4,20.0]
[1720475730757,16.8786,140.48,140.43,9.76]
[1720475731050,7.1186,140.48,140.43,9.76]